[Event "Mona Karff Memorial 2023"]
[Site "New York"]
[Date "2023.11.18"]
[Round "1.1"]
[White "Krush, Irina"]
[Black "Vikas, Hema"]
[Result "1-0"]
[ECO "D85"]
[WhiteElo "2428"]
[BlackElo "1577"]
[Annotator "RC"]
[PlyCount "75"]
[EventDate "2023.11.15"]
[EventType "swiss"]
[EventCountry "USA"]
[SourceTitle "playchess.com"]
[Source "ChessBase"]
[SourceQuality "1"]
[TimeControl "5400+30"]

1. d4 {[%emt 0:00:03]} Nf6 {[%emt 0:00:06]} 2. c4 {[%emt 0:00:07]} g6 {[%emt 0:00:06]} 3. Nc3 {[%emt 0:00:07]} d5 {[%emt 0:00:05]} 4. cxd5 {[%emt 0:00:12]} Nxd5 {[%emt 0:00:05]} 5. e4 {[%emt 0:00:08]} Nxc3 {[%emt 0:00:07]} 6. bxc3 {[%emt 0:00:09]} Bg7 {[%emt 0:00:06]} 7. Qa4+ {[%emt 0:00:52]} Bd7 {[%emt 0:04:15]} 8. Qa3 {[%emt 0:00:49]} O-O {[%emt 0:03:10]} 9. Bg5 {[%emt 0:02:19]} Re8 {[%emt 0:01:24]} 10. Nf3 {[%emt 0:00:28]} Nc6 {[%emt 0:04:26]} 11. h3 {[%emt 0:04:55]} a6 {[%emt 0:04:46]} 12. Be2 {[%emt 0:02:26]} Na7 {[%emt 0:01:27]} 13. O-O {[%emt 0:02:15]} Nb5 {[%emt 0:01:03]} 14. Qb3 {[%emt 0:03:18]} Be6 {[%emt 0:06:46]} 15. d5 {[%emt 0:03:03]} Nxc3 {[%emt 0:02:07]} 16. dxe6 {[%emt 0:00:23]} Nxe2+ {[%emt 0:00:35]} 17. Kh1 {[%emt 0:00:03]} f6 {[%emt 0:08:47]} 18. Be3 {[%emt 0:01:00]} c5 {[%emt 0:09:39]} 19. Rad1 {[%emt 0:07:47]} Qa5 {[%emt 0:05:02]} 20. Rd7 {[%emt 0:11:32]} Nc3 {[%emt 0:12:36]} 21. Rc1 {[%emt 0:09:44]} Nxe4 {[%emt 0:01:17]} 22. Qxb7 {[%emt 0:00:31]} Nd6 {[%emt 0:06:34]} 23. Qd5 {[%emt 0:00:16]} Rac8 {[%emt 0:07:01]} 24. Bf4 {[%emt 0:03:30]} Nf5 {[%emt 0:04:26]} 25. g4 {[%emt 0:00:34]} Bh6 {[%emt 0:01:34]} 26. Bxh6 {[%emt 0:08:59]} Nxh6 {[%emt 0:00:17]} 27. Rb1 {[%emt 0:07:58]} Qa3 {[%emt 0:04:12]} 28. Rbb7 {[%emt 0:19:37]} c4 {[%emt 0:00:08]} 29. Rdc7 {[%emt 0:02:00]} c3 {[%emt 0:05:36]} 30. Qc6 {[%emt 0:01:22]} c2 {[%emt 0:02:38]} 31. Rxc8 {[%emt 0:01:06]} Qxf3+ {[%emt 0:00:09]} 32. Kg1 {[%emt 0:02:11]} Qd1+ {[%emt 0:04:45]} 33. Kg2 {[%emt 0:01:38]} Rxc8 {[%emt 0:01:13]} 34. Qxc8+ {[%emt 0:00:15]} Kg7 {[%emt 0:00:02]} 35. Rxe7+ {[%emt 0:01:49]} Nf7 {[%emt 0:00:02]} 36. Rxf7+ {[%emt 0:05:04]} Kh6 37. Qf8+ {[%emt 0:00:00]} Kg5 {[%emt 0:00:03]} 38. Qc5+ {[%emt 0:00:00]} 1-0

[Event "Mona Karff Memorial 2023"]
[Site "New York"]
[Date "2023.11.18"]
[Round "1.2"]
[White "Zhou, Abigail"]
[Black "Paragua, Megan Althea"]
[Result "0-1"]
[ECO "B23"]
[WhiteElo "1519"]
[BlackElo "1903"]
[Annotator "ChessBase"]
[PlyCount "108"]
[EventDate "2023.11.15"]
[EventType "swiss"]
[EventCountry "USA"]
[SourceTitle "playchess.com"]
[Source "ChessBase"]
[SourceQuality "1"]
[TimeControl "5400+30"]

1. e4 {[%emt 0:00:02]} c5 {[%emt 0:00:11]} 2. Nc3 {[%emt 0:00:11]} d6 {[%emt 0:00:05]} 3. Bc4 {[%emt 0:00:26]} Nf6 {[%emt 0:00:41]} 4. d3 {[%emt 0:00:21]} e6 {[%emt 0:00:12]} 5. Bd2 {[%emt 0:01:20]} Be7 {[%emt 0:00:35]} 6. f4 {[%emt 0:00:39]} O-O {[%emt 0:00:44]} 7. Nf3 {[%emt 0:00:16]} Nc6 {[%emt 0:00:21]} 8. O-O {[%emt 0:00:39]} a6 {[%emt 0:01:18]} 9. a4 {[%emt 0:00:42]} b6 {[%emt 0:01:52]} 10. Qe1 {[%emt 0:01:09]} d5 {[%emt 0:01:36]} 11. Bb3 {[%emt 0:00:37]} dxe4 {[%emt 0:11:06]} 12. dxe4 {[%emt 0:00:40]} Bb7 {[%emt 0:03:39]} 13. Rd1 {[%emt 0:01:00]} Qc7 {[%emt 0:05:22]} 14. Be3 {[%emt 0:01:20]} Nb4 {[%emt 0:02:43]} 15. Nd2 {[%emt 0:01:10]} Ng4 {[%emt 0:01:48]} 16. Kh1 {[%emt 0:01:01]} Nxe3 {[%emt 0:02:59]} 17. Qxe3 {[%emt 0:00:20]} h6 {[%emt 0:04:04]} 18. Nc4 {[%emt 0:01:06]} Rad8 {[%emt 0:01:56]} 19. Ne5 {[%emt 0:00:38]} Bf6 {[%emt 0:03:26]} 20. Ng4 {[%emt 0:01:27]} Bd4 {[%emt 0:00:17]} 21. Qe2 {[%emt 0:01:03]} Rfe8 {[%emt 0:10:44]} 22. f5 {[%emt 0:04:14]} h5 {[%emt 0:03:01]} 23. fxe6 {[%emt 0:01:49]} fxe6 {[%emt 0:00:46]} 24. Nf2 {[%emt 0:00:35]} Qe5 {[%emt 0:01:03]} 25. Nd3 {[%emt 0:01:56]} Nxd3 {[%emt 0:00:59]} 26. Rxd3 {[%emt 0:00:42]} Bxc3 {[%emt 0:03:29]} 27. Rxc3 {[%emt 0:00:19]} Rf8 {[%emt 0:04:47]} 28. Rcf3 {[%emt 0:01:47]} Bxe4 {[%emt 0:06:28]} 29. R3f2 {[%emt 0:03:12]} Rxf2 {[%emt 0:03:33]} 30. Rxf2 {[%emt 0:01:16]} Kh8 {[%emt 0:06:14]} 31. c3 {[%emt 0:02:11]} Qg5 {[%emt 0:07:53]} 32. Rf1 {[%emt 0:01:19]} Bd3 {[%emt 0:00:53]} 33. Qe1 {[%emt 0:00:19]} Bxf1 {[%emt 0:00:05]} 34. Qxf1 {[%emt 0:00:08]} Qf5 {[%emt 0:00:11]} 35. Qe1 {[%emt 0:00:23]} e5 {[%emt 0:00:41]} 36. h3 {[%emt 0:01:01]} Rf8 {[%emt 0:00:17]} 37. Kh2 {[%emt 0:00:20]} Qf4+ {[%emt 0:00:10]} 38. Kg1 {[%emt 0:00:21]} e4 {[%emt 0:00:06]} 39. Bc2 {[%emt 0:00:18]} e3 {[%emt 0:00:14]} 40. Bd3 {[%emt 0:00:26]} Qf2+ {[%emt 0:00:12]} 41. Qxf2 {[%emt 0:00:16]} Rxf2 {[%emt 0:00:07]} 42. b3 {[%emt 0:00:30]} a5 {[%emt 0:00:14]} 43. h4 {[%emt 0:00:20]} Rb2 {[%emt 0:00:32]} 44. Bc4 {[%emt 0:00:18]} g6 {[%emt 0:00:14]} 45. Kf1 {[%emt 0:00:26]} Kg7 {[%emt 0:00:03]} 46. g3 {[%emt 0:00:25]} Kf6 {[%emt 0:00:07]} 47. Kg1 {[%emt 0:00:30]} Kf5 {[%emt 0:00:28]} 48. Kf1 {[%emt 0:00:16]} Kg4 {[%emt 0:00:28]} 49. Ke1 {[%emt 0:00:37]} Kxg3 {[%emt 0:00:15]} 50. Kf1 {[%emt 0:00:22]} e2+ {[%emt 0:00:14]} 51. Ke1 {[%emt 0:00:23]} Kf3 {[%emt 0:00:03]} 52. Bb5 {[%emt 0:00:34]} Rb1+ {[%emt 0:00:05]} 53. Kd2 {[%emt 0:00:14]} e1=Q+ {[%emt 0:00:06]} 54. Kd3 {[%emt 0:00:23]} Qe2# {[%emt 0:17:53]} 0-1

[Event "Mona Karff Memorial 2023"]
[Site "New York"]
[Date "2023.11.18"]
[Round "1.4"]
[White "Li, Wan Qin"]
[Black "Gaw, Chloe"]
[Result "0-1"]
[ECO "B59"]
[WhiteElo "1515"]
[BlackElo "1863"]
[Annotator "NA"]
[PlyCount "110"]
[EventDate "2023.11.15"]
[EventType "swiss"]
[EventCountry "USA"]
[SourceTitle "playchess.com"]
[Source "ChessBase"]
[SourceQuality "1"]
[TimeControl "5400+30"]

1. e4 {[%emt 0:00:03]} c5 {[%emt 0:00:00]} 2. Nf3 {[%emt 0:00:08]} d6 {[%emt 0:00:03]} 3. d4 {[%emt 0:00:12]} cxd4 {[%emt 0:00:03]} 4. Nxd4 {[%emt 0:00:09]} Nf6 {[%emt 0:00:02]} 5. Nc3 {[%emt 0:00:09]} Nc6 {[%emt 0:00:02]} 6. Be2 {[%emt 0:00:29]} e5 {[%emt 0:00:09]} 7. Nb3 {[%emt 0:00:16]} Be7 {[%emt 0:00:09]} 8. O-O {[%emt 0:00:31]} O-O {[%emt 0:00:39]} 9. h3 {[%emt 0:00:40]} Be6 {[%emt 0:01:18]} 10. Be3 {[%emt 0:00:20]} a6 {[%emt 0:00:57]} 11. f4 {[%emt 0:00:53]} exf4 {[%emt 0:03:02]} 12. Bxf4 {[%emt 0:01:05]} Qb6+ {[%emt 0:02:20]} 13. Kh1 {[%emt 0:00:37]} Rfd8 {[%emt 0:01:20]} 14. Qd2 {[%emt 0:02:04]} d5 {[%emt 0:08:02]} 15. exd5 {[%emt 0:02:28]} Nb4 {[%emt 0:05:49]} 16. Na4 {[%emt 0:03:20]} Qa7 {[%emt 0:01:49]} 17. d6 {[%emt 0:00:35]} Nc6 {[%emt 0:03:03]} 18. Bd3 {[%emt 0:03:07]} Bf8 {[%emt 0:09:18]} 19. Be3 {[%emt 0:02:09]} Qb8 {[%emt 0:02:24]} 20. Nb6 {[%emt 0:00:49]} Ra7 {[%emt 0:01:48]} 21. Na4 {[%emt 0:01:41]} Bxd6 {[%emt 0:06:39]} 22. Bxa7 {[%emt 0:00:44]} Nxa7 {[%emt 0:02:13]} 23. Rxf6 {[%emt 0:00:39]} gxf6 {[%emt 0:02:04]} 24. Qh6 {[%emt 0:00:16]} f5 {[%emt 0:02:05]} 25. Qg5+ {[%emt 0:00:41]} Kf8 {[%emt 0:02:20]} 26. Nd4 {[%emt 0:01:28]} Be5 {[%emt 0:05:35]} 27. Nxe6+ {[%emt 0:02:43]} fxe6 {[%emt 0:00:01]} 28. Nc5 {[%emt 0:01:02]} Rd6 {[%emt 0:06:08]} 29. Qh6+ {[%emt 0:02:02]} Kf7 {[%emt 0:03:46]} 30. Qxh7+ {[%emt 0:00:49]} Bg7 {[%emt 0:01:34]} 31. Qh5+ {[%emt 0:00:08]} Kf8 {[%emt 0:04:28]} 32. Qf3 {[%emt 0:02:29]} Nc6 {[%emt 0:27:20]} 33. Qe3 {[%emt 0:01:47]} Qc8 {[%emt 0:00:00]} 34. Bc4 {[%emt 0:09:28]} Nd4 {[%emt 0:00:00]} 35. Ne4 {[%emt 0:07:42]} fxe4 {[%emt 0:00:00]} 36. Rf1+ {[%emt 0:00:10]} Ke8 {[%emt 0:00:00]} 37. Be2 {[%emt 0:04:14]} Nf5 {[%emt 0:00:00]} 38. Bh5+ {[%emt 0:00:53]} Ke7 {[%emt 0:00:00]} 39. Qg5+ {[%emt 0:01:01]} Bf6 {[%emt 0:00:00]} 40. Qg6 {[%emt 0:00:27]} Qf8 {[%emt 0:00:00]} 41. Qh7+ {[%emt 0:00:37]} Qg7 {[%emt 0:00:00]} 42. Qxg7+ {[%emt 0:00:50]} Bxg7 {[%emt 0:00:00]} 43. Re1 {[%emt 0:00:30]} Ng3+ {[%emt 0:00:00]} 44. Kh2 {[%emt 0:00:09]} Nxh5 {[%emt 0:00:00]} 45. Rxe4 {[%emt 0:00:06]} Bxb2 {[%emt 0:00:00]} 46. Re1 {[%emt 0:00:35]} Rd2 {[%emt 0:00:00]} 47. Rf1 {[%emt 0:00:14]} Be5+ {[%emt 0:00:00]} 48. Kg1 {[%emt 0:00:22]} Nf4 {[%emt 0:00:00]} 49. Rxf4 {[%emt 0:00:25]} Bxf4 {[%emt 0:00:00]} 50. c4 {[%emt 0:00:10]} Bg3 {[%emt 0:00:00]} 51. Kf1 {[%emt 0:00:07]} Kf6 {[%emt 0:00:00]} 52. c5 {[%emt 0:00:12]} Ke5 {[%emt 0:00:00]} 53. h4 {[%emt 0:00:11]} Ke4 {[%emt 0:00:00]} 54. h5 {[%emt 0:00:08]} Ke3 {[%emt 0:00:00]} 55. h6 {[%emt 0:00:08]} Rd1# {[%emt 0:00:00]} 0-1

[Event "Mona Karff Memorial 2023"]
[Site "New York"]
[Date "2023.11.18"]
[Round "2.1"]
[White "Gaw, Chloe"]
[Black "Krush, Irina"]
[Result "0-1"]
[ECO "E51"]
[WhiteElo "1863"]
[BlackElo "2428"]
[Annotator "RC"]
[PlyCount "66"]
[EventDate "2023.11.15"]
[EventType "swiss"]
[EventCountry "USA"]
[SourceTitle "playchess.com"]
[Source "ChessBase"]
[SourceQuality "1"]
[TimeControl "5400+30"]

1. d4 {[%emt 0:00:03]} Nf6 {[%emt 0:00:09]} 2. c4 {[%emt 0:00:07]} e6 {[%emt 0:00:07]} 3. Nc3 {[%emt 0:00:05]} Bb4 {[%emt 0:00:17]} 4. e3 {[%emt 0:00:10]} O-O {[%emt 0:00:31]} 5. Bd3 {[%emt 0:00:06]} d5 {[%emt 0:00:34]} 6. a3 {[%emt 0:00:35]} Be7 {[%emt 0:01:11]} 7. Nf3 {[%emt 0:00:26]} b6 {[%emt 0:00:25]} 8. cxd5 {[%emt 0:00:31]} exd5 {[%emt 0:00:10]} 9. O-O {[%emt 0:00:06]} c5 {[%emt 0:00:58]} 10. b3 {[%emt 0:00:50]} Bb7 {[%emt 0:03:31]} 11. Bb2 {[%emt 0:03:35]} Nbd7 {[%emt 0:00:48]} 12. Rc1 {[%emt 0:02:30]} Bd6 {[%emt 0:05:31]} 13. Qc2 {[%emt 0:09:25]} a6 {[%emt 0:08:04]} 14. Rfd1 {[%emt 0:07:19]} Qe7 {[%emt 0:02:11]} 15. Na4 {[%emt 0:15:55]} c4 {[%emt 0:12:06]} 16. Bf5 {[%emt 0:09:26]} b5 {[%emt 0:03:42]} 17. Nc5 {[%emt 0:04:24]} Nxc5 {[%emt 0:12:16]} 18. dxc5 {[%emt 0:02:08]} Bxc5 {[%emt 0:00:03]} 19. Ng5 {[%emt 0:07:16]} g6 {[%emt 0:04:11]} 20. b4 {[%emt 0:15:04]} Bb6 {[%emt 0:02:13]} 21. Bh3 {[%emt 0:06:23]} Rad8 {[%emt 0:01:40]} 22. Qc3 {[%emt 0:04:00]} d4 {[%emt 0:01:34]} 23. exd4 {[%emt 0:01:26]} Nd5 {[%emt 0:01:51]} 24. Qg3 {[%emt 0:02:03]} Rfe8 {[%emt 0:04:57]} 25. Qh4 {[%emt 0:02:20]} h5 {[%emt 0:00:31]} 26. Kh1 {[%emt 0:03:07]} Bc7 {[%emt 0:04:12]} 27. Nf3 {[%emt 0:02:02]} Qxh4 {[%emt 0:01:41]} 28. Nxh4 {[%emt 0:00:04]} Nf4 {[%emt 0:02:14]} 29. d5 {[%emt 0:00:56]} Bxd5 {[%emt 0:00:59]} 30. f3 {[%emt 0:00:41]} Nd3 {[%emt 0:01:11]} 31. Rc2 {[%emt 0:01:16]} Nxb2 {[%emt 0:00:33]} 32. Rxb2 {[%emt 0:00:19]} c3 {[%emt 0:00:58]} 33. Rf2 {[%emt 0:00:20]} Bb3 {[%emt 0:25:41]} 0-1

[Event "Mona Karff Memorial 2023"]
[Site "New York"]
[Date "2023.11.18"]
[Round "2.2"]
[White "Paragua, Megan Althea"]
[Black "Teasley, Dorothy O."]
[Result "1/2-1/2"]
[ECO "B30"]
[WhiteElo "1903"]
[BlackElo "2044"]
[Annotator "ChessBase"]
[PlyCount "117"]
[EventDate "2023.11.15"]
[EventType "swiss"]
[EventCountry "USA"]
[SourceTitle "playchess.com"]
[Source "ChessBase"]
[SourceQuality "1"]
[TimeControl "5400+30"]

1. e4 {[%emt 0:02:27]} c5 {[%emt 0:00:24]} 2. Nf3 {[%emt 0:00:09]} Nc6 {[%emt 0:00:49]} 3. Bb5 {[%emt 0:00:12]} e6 {[%emt 0:03:11]} 4. O-O {[%emt 0:00:48]} Qc7 {[%emt 0:01:10]} 5. c3 {[%emt 0:02:35]} Nf6 {[%emt 0:03:17]} 6. Re1 {[%emt 0:00:50]} h5 {[%emt 0:00:42]} 7. d4 {[%emt 0:01:34]} cxd4 {[%emt 0:01:58]} 8. cxd4 {[%emt 0:00:37]} Bb4 {[%emt 0:01:21]} 9. Bd2 {[%emt 0:04:08]} Bxd2 {[%emt 0:04:53]} 10. Qxd2 {[%emt 0:05:00]} Kf8 {[%emt 0:02:21]} 11. Nc3 {[%emt 0:03:50]} a6 {[%emt 0:01:14]} 12. Bf1 {[%emt 0:00:23]} d5 {[%emt 0:03:44]} 13. exd5 {[%emt 0:02:48]} exd5 {[%emt 0:01:55]} 14. Rac1 {[%emt 0:00:48]} Be6 {[%emt 0:02:51]} 15. Ne5 {[%emt 0:03:17]} Ng4 {[%emt 0:01:19]} 16. h3 {[%emt 0:16:14]} Ngxe5 {[%emt 0:08:32]} 17. dxe5 {[%emt 0:00:24]} Qd7 {[%emt 0:01:21]} 18. Na4 {[%emt 0:02:26]} Qe7 {[%emt 0:04:18]} 19. Nc5 {[%emt 0:03:14]} g5 {[%emt 0:01:07]} 20. g3 {[%emt 0:02:32]} Rg8 {[%emt 0:04:42]} 21. Bg2 {[%emt 0:01:19]} Rd8 {[%emt 0:02:43]} 22. b3 {[%emt 0:08:34]} Nb8 {[%emt 0:03:32]} 23. Qb4 {[%emt 0:02:59]} b5 {[%emt 0:02:00]} 24. Qa5 {[%emt 0:00:38]} Kg7 {[%emt 0:01:15]} 25. Qd2 {[%emt 0:04:46]} Rc8 {[%emt 0:01:55]} 26. b4 {[%emt 0:01:57]} h4 {[%emt 0:05:16]} 27. g4 {[%emt 0:00:56]} Rgd8 {[%emt 0:00:56]} 28. a3 {[%emt 0:01:30]} Rc6 {[%emt 0:01:40]} 29. Red1 {[%emt 0:04:20]} Nd7 {[%emt 0:05:37]} 30. Nxd7 {[%emt 0:06:57]} Rxc1 {[%emt 0:00:26]} 31. Qxc1 {[%emt 0:02:25]} Rxd7 {[%emt 0:00:41]} 32. Qc6 {[%emt 0:02:51]} Qd8 {[%emt 0:02:53]} 33. Qxa6 {[%emt 0:03:02]} Qb8 {[%emt 0:00:10]} 34. Bf1 {[%emt 0:00:30]} Ra7 {[%emt 0:00:34]} 35. Qxb5 {[%emt 0:00:48]} Qxb5 {[%emt 0:00:41]} 36. Bxb5 {[%emt 0:00:07]} Rxa3 {[%emt 0:00:16]} 37. Kg2 {[%emt 0:00:07]} Rb3 {[%emt 0:01:33]} 38. Rd4 {[%emt 0:05:46]} f6 {[%emt 0:00:09]} 39. exf6+ {[%emt 0:00:25]} Kxf6 {[%emt 0:00:01]} 40. Ba4 {[%emt 0:00:13]} Ke5 {[%emt 0:01:48]} 41. Bxb3 {[%emt 0:02:42]} Kxd4 {[%emt 0:00:02]} 42. b5 {[%emt 0:01:07]} Kc5 {[%emt 0:00:10]} 43. Ba4 {[%emt 0:01:03]} d4 {[%emt 0:00:20]} 44. f3 {[%emt 0:00:19]} Bd5 {[%emt 0:01:32]} 45. Kf2 {[%emt 0:00:20]} Kb4 {[%emt 0:00:08]} 46. Bc2 {[%emt 0:00:08]} Kxb5 {[%emt 0:26:03]} 47. f4 {[%emt 0:00:57]} gxf4 {[%emt 0:00:00]} 48. g5 {[%emt 0:00:04]} Kb4 {[%emt 0:00:00]} 49. g6 {[%emt 0:00:57]} Kc3 {[%emt 0:00:00]} 50. Bd1 {[%emt 0:00:11]} d3 {[%emt 0:00:00]} 51. g7 {[%emt 0:00:08]} Kd2 {[%emt 0:00:00]} 52. Ba4 {[%emt 0:00:07]} Kc1 {[%emt 0:00:00]} 53. Kf1 {[%emt 0:00:15]} d2 {[%emt 0:00:00]} 54. Ke2 {[%emt 0:00:07]} f3+ {[%emt 0:00:00]} 55. Kf2 {[%emt 0:00:28]} d1=Q {[%emt 0:00:00]} 56. Bxd1 {[%emt 0:00:09]} Kxd1 {[%emt 0:00:00]} 57. g8=Q {[%emt 0:00:11]} Bxg8 {[%emt 0:00:00]} 58. Kxf3 {[%emt 0:00:03]} Be6 {[%emt 0:00:00]} 59. Kf4 {[%emt 0:00:03]} 1/2-1/2

[Event "Mona Karff Memorial 2023"]
[Site "New York"]
[Date "2023.11.18"]
[Round "2.4"]
[White "Zlotchevsky, Nicole"]
[Black "Zhou, Audrey"]
[Result "1-0"]
[ECO "B42"]
[WhiteElo "1771"]
[BlackElo "1025"]
[Annotator "NA"]
[PlyCount "177"]
[EventDate "2023.11.15"]
[EventType "swiss"]
[EventCountry "USA"]
[SourceTitle "playchess.com"]
[Source "ChessBase"]
[SourceQuality "1"]
[TimeControl "5400+30"]

1. e4 {[%emt 0:06:49]} c5 {[%emt 0:11:38]} 2. Nf3 {[%emt 0:00:16]} e6 {[%emt 0:00:07]} 3. d4 {[%emt 0:00:07]} cxd4 {[%emt 0:00:06]} 4. Nxd4 {[%emt 0:00:03]} a6 {[%emt 0:00:06]} 5. Bd3 {[%emt 0:00:23]} Nf6 {[%emt 0:00:08]} 6. O-O {[%emt 0:00:43]} Bc5 {[%emt 0:00:11]} 7. Nf3 {[%emt 0:01:02]} Be7 {[%emt 0:00:14]} 8. e5 {[%emt 0:01:08]} Nd5 {[%emt 0:00:08]} 9. a3 {[%emt 0:02:06]} Qc7 {[%emt 0:00:41]} 10. c4 {[%emt 0:02:34]} Nb6 {[%emt 0:00:18]} 11. Qe2 {[%emt 0:02:19]} d6 {[%emt 0:01:41]} 12. Nc3 {[%emt 0:03:39]} Nc6 {[%emt 0:02:28]} 13. exd6 {[%emt 0:03:20]} Bxd6 {[%emt 0:00:35]} 14. b4 {[%emt 0:04:39]} Ne5 {[%emt 0:05:42]} 15. Nxe5 {[%emt 0:09:11]} Bxe5 {[%emt 0:00:07]} 16. Bb2 {[%emt 0:01:36]} O-O {[%emt 0:11:03]} 17. h3 {[%emt 0:08:32]} Nd7 {[%emt 0:05:53]} 18. Qh5 {[%emt 0:09:10]} g6 {[%emt 0:03:09]} 19. Qe2 {[%emt 0:04:13]} Bg7 {[%emt 0:00:39]} 20. c5 {[%emt 0:05:03]} b6 {[%emt 0:55:36]} 21. Ne4 {[%emt 0:11:33]} Bb7 {[%emt 0:00:00]} 22. Rac1 {[%emt 0:04:08]} Qc6 {[%emt 0:00:00]} 23. cxb6 {[%emt 0:02:29]} Qxb6 {[%emt 0:00:00]} 24. Bxg7 {[%emt 0:01:16]} Kxg7 {[%emt 0:00:00]} 25. Qb2+ {[%emt 0:00:49]} Kg8 {[%emt 0:00:00]} 26. Rfd1 {[%emt 0:03:43]} Bd5 {[%emt 0:00:00]} 27. Nc3 {[%emt 0:05:31]} Rfd8 {[%emt 0:00:00]} 28. Be4 {[%emt 0:00:40]} Nf6 {[%emt 0:00:00]} 29. Na4 {[%emt 0:05:33]} Qb5 {[%emt 0:00:00]} 30. Qxf6 {[%emt 0:00:27]} Qxa4 {[%emt 0:00:00]} 31. Rd3 {[%emt 0:00:31]} Rd7 {[%emt 0:00:00]} 32. Rcd1 {[%emt 0:00:52]} Rad8 {[%emt 0:00:00]} 33. Bxd5 {[%emt 0:00:41]} exd5 {[%emt 0:00:00]} 34. Qe5 {[%emt 0:00:14]} Qb5 {[%emt 0:00:00]} 35. Rd4 {[%emt 0:00:09]} Qc6 {[%emt 0:00:00]} 36. h4 {[%emt 0:00:18]} Qe6 {[%emt 0:00:00]} 37. Qg5 {[%emt 0:00:21]} Kg7 {[%emt 0:00:00]} 38. h5 {[%emt 0:00:10]} h6 {[%emt 0:00:00]} 39. Qg3 {[%emt 0:00:49]} Qd6 {[%emt 0:00:00]} 40. Qc3 {[%emt 0:00:20]} Qf6 {[%emt 0:00:00]} 41. Qg3 {[%emt 0:01:02]} Qd6 {[%emt 0:00:00]} 42. Qc3 {[%emt 0:00:50]} Qf6 {[%emt 0:00:00]} 43. a4 {[%emt 0:01:20]} Rd6 {[%emt 0:00:00]} 44. b5 {[%emt 0:00:16]} axb5 {[%emt 0:00:00]} 45. axb5 {[%emt 0:00:02]} Kh7 {[%emt 0:00:00]} 46. R1d3 {[%emt 0:00:47]} Qe6 {[%emt 0:00:00]} 47. Re3 {[%emt 0:00:18]} Qd7 {[%emt 0:00:00]} 48. Qd3 {[%emt 0:00:43]} Rb8 {[%emt 0:00:00]} 49. Rb4 {[%emt 0:01:13]} Rdb6 {[%emt 0:00:00]} 50. hxg6+ {[%emt 0:00:52]} fxg6 {[%emt 0:00:00]} 51. Qe2 {[%emt 0:00:09]} R8b7 {[%emt 0:00:00]} 52. Re8 {[%emt 0:00:22]} Qd6 {[%emt 0:01:36]} 53. Qb2 {[%emt 0:00:54]} Qf6 {[%emt 0:00:45]} 54. Qxf6 {[%emt 0:00:12]} Rxf6 {[%emt 0:00:06]} 55. Rd8 {[%emt 0:00:04]} Rf5 {[%emt 0:00:37]} 56. Rd6 {[%emt 0:00:08]} h5 {[%emt 0:00:33]} 57. b6 {[%emt 0:00:05]} Kh6 {[%emt 0:00:26]} 58. Rc6 {[%emt 0:00:09]} Rff7 {[%emt 0:00:45]} 59. Rd6 {[%emt 0:00:05]} Rf5 {[%emt 0:00:09]} 60. f3 {[%emt 0:00:22]} Kg5 {[%emt 0:00:21]} 61. Kf2 {[%emt 0:00:13]} Kh6 {[%emt 0:01:30]} 62. Ke3 {[%emt 0:00:52]} Kg5 {[%emt 0:04:14]} 63. Rb5 {[%emt 0:01:41]} Kh6 {[%emt 0:00:44]} 64. Kd4 {[%emt 0:00:21]} h4 {[%emt 0:02:14]} 65. Rdxd5 {[%emt 0:00:30]} h3 {[%emt 0:00:32]} 66. gxh3 {[%emt 0:00:37]} Rxf3 {[%emt 0:00:05]} 67. Kc5 {[%emt 0:00:27]} Rc3+ {[%emt 0:03:08]} 68. Kd6 {[%emt 0:00:05]} Rc8 {[%emt 0:02:29]} 69. Rdc5 {[%emt 0:00:33]} Rd8+ {[%emt 0:00:18]} 70. Kc6 {[%emt 0:00:24]} Rdd7 {[%emt 0:00:16]} 71. Rd5 {[%emt 0:00:40]} Rf7 {[%emt 0:00:21]} 72. Rd6 {[%emt 0:00:37]} Rg7 {[%emt 0:00:47]} 73. Rbd5 {[%emt 0:00:40]} Rb8 {[%emt 0:00:40]} 74. Rd7 {[%emt 0:00:44]} Rgg8 {[%emt 0:00:26]} 75. b7 {[%emt 0:00:35]} g5 {[%emt 0:00:14]} 76. R5d6+ {[%emt 0:00:34]} Rg6 {[%emt 0:00:19]} 77. Rxg6+ {[%emt 0:00:07]} Kxg6 {[%emt 0:00:04]} 78. Kc7 {[%emt 0:00:06]} Rxb7+ {[%emt 0:00:32]} 79. Kxb7 {[%emt 0:00:06]} Kf5 {[%emt 0:00:07]} 80. Kc6 {[%emt 0:00:13]} Kf4 {[%emt 0:00:08]} 81. Kd5 {[%emt 0:00:06]} Kg3 {[%emt 0:00:05]} 82. Rh7 {[%emt 0:00:04]} g4 {[%emt 0:00:07]} 83. hxg4 {[%emt 0:00:05]} Kxg4 {[%emt 0:00:03]} 84. Rf7 {[%emt 0:00:07]} Kg5 {[%emt 0:00:04]} 85. Ke5 {[%emt 0:00:06]} Kg6 {[%emt 0:00:05]} 86. Rf2 {[%emt 0:00:04]} Kg5 {[%emt 0:00:07]} 87. Rg2+ {[%emt 0:00:05]} Kh4 {[%emt 0:00:04]} 88. Kf5 {[%emt 0:00:06]} Kh5 {[%emt 0:00:04]} 89. Rh2# {[%emt 0:00:07]} 1-0

[Event "Mona Karff Memorial 2023"]
[Site "New York"]
[Date "2023.11.19"]
[Round "3.1"]
[White "Krush, Irina"]
[Black "Aravindakshan, Sahana"]
[Result "1-0"]
[ECO "E94"]
[WhiteElo "2428"]
[BlackElo "1921"]
[Annotator "RC"]
[PlyCount "81"]
[EventDate "2023.11.15"]
[EventType "swiss"]
[EventCountry "USA"]
[SourceTitle "playchess.com"]
[Source "ChessBase"]
[SourceQuality "1"]
[TimeControl "5400+30"]

1. d4 {[%emt 0:00:04]} Nf6 {[%emt 0:00:02]} 2. c4 {[%emt 0:00:08]} g6 {[%emt 0:00:04]} 3. Nc3 {[%emt 0:00:10]} Bg7 {[%emt 0:00:03]} 4. e4 {[%emt 0:00:09]} d6 {[%emt 0:00:04]} 5. Be2 {[%emt 0:00:07]} O-O {[%emt 0:00:07]} 6. Nf3 {[%emt 0:00:06]} Na6 {[%emt 0:00:05]} 7. O-O {[%emt 0:01:23]} e5 {[%emt 0:00:04]} 8. Be3 {[%emt 0:00:09]} Qe7 {[%emt 0:00:26]} 9. d5 {[%emt 0:00:26]} Nc5 {[%emt 0:00:58]} 10. Nd2 {[%emt 0:00:50]} a5 {[%emt 0:00:09]} 11. b3 {[%emt 0:04:37]} Ne8 {[%emt 0:08:27]} 12. a3 {[%emt 0:00:36]} f5 {[%emt 0:00:42]} 13. f3 {[%emt 0:00:12]} Nf6 {[%emt 0:04:06]} 14. b4 {[%emt 0:01:17]} Na6 {[%emt 0:12:10]} 15. c5 {[%emt 0:05:30]} Nh5 {[%emt 0:10:06]} 16. cxd6 {[%emt 0:11:12]} cxd6 {[%emt 0:02:09]} 17. bxa5 {[%emt 0:00:23]} Nf4 {[%emt 0:03:13]} 18. Kh1 {[%emt 0:04:16]} Nxe2 {[%emt 0:19:38]} 19. Qxe2 {[%emt 0:01:06]} f4 {[%emt 0:01:02]} 20. Bf2 {[%emt 0:04:33]} g5 {[%emt 0:04:44]} 21. Nc4 {[%emt 0:01:22]} h5 {[%emt 0:02:41]} 22. Nb5 {[%emt 0:00:54]} Rf6 {[%emt 0:05:13]} 23. Nb6 {[%emt 0:00:43]} Rb8 {[%emt 0:00:18]} 24. Rfc1 {[%emt 0:03:07]} Bd7 {[%emt 0:01:18]} 25. Nc7 {[%emt 0:00:12]} Nc5 {[%emt 0:01:54]} 26. Bxc5 {[%emt 0:01:22]} dxc5 {[%emt 0:00:03]} 27. Nxd7 {[%emt 0:00:13]} Qxd7 {[%emt 0:00:43]} 28. Ne6 {[%emt 0:00:03]} Rg6 {[%emt 0:02:39]} 29. Rxc5 {[%emt 0:00:36]} Rc8 {[%emt 0:05:02]} 30. Rac1 {[%emt 0:05:06]} Rxc5 {[%emt 0:00:18]} 31. Nxc5 {[%emt 0:08:11]} Qc7 {[%emt 0:01:54]} 32. Qc4 {[%emt 0:05:12]} Kh7 {[%emt 0:02:13]} 33. Ne6 {[%emt 0:06:55]} Qxa5 {[%emt 0:01:32]} 34. Qb4 {[%emt 0:00:09]} Qa6 {[%emt 0:01:42]} 35. Qe7 {[%emt 0:01:18]} Kh6 {[%emt 0:00:47]} 36. h3 {[%emt 0:03:01]} Qe2 {[%emt 0:02:16]} 37. Nxg7 {[%emt 0:05:16]} Rxg7 {[%emt 0:00:10]} 38. Qf6+ {[%emt 0:00:42]} Kh7 {[%emt 0:00:04]} 39. Qxe5 {[%emt 0:00:09]} Qd2 {[%emt 0:01:40]} 40. Qc3 {[%emt 0:00:31]} Qe2 {[%emt 0:01:09]} 41. e5 {[%emt 0:03:02]} 1-0